Cogmind - Beta 14 *** ADVENTURER MODE // 2024.08.15 @ 19:46:41 Player: toastahs Result: Destroyed by G-73 Enforcer with Phase Gun Performance ------------- Evolutions (6) 3000 Regions Visited (13) 2600 Robots Destroyed (130) 650 Value Destroyed (4029) 4029 Prototype IDs (12) 240 Alien Tech Used (0) 0 Bonus (470) 470 TOTAL SCORE: 10989 Bonus ------- High Alert Combat Kills 235 Follower Combat Kills 779 Entered DSFs 500 Friendly Fire -1044 Cogmind --------- Core Integrity 0/1150 Matter 177/300 Energy 32/100 System Corruption 13% Temperature Cool (9) Movement Core (50) Location -4/Factory Parts ------- > --- POWER (3) -------- (None) > --- PROPULSION (4) --- (None) > --- UTILITY (8) ------ Advanced ECM Suite > --- WEAPON (4) ------- (None) > --- INVENTORY (5) ---- Cloaking Device Peak State ------------ > --- POWER ------------ Antimatter Reactor Antimatter Reactor Light Antimatter Reactor > --- PROPULSION ------- Heavy Treads Improved Heavy Siege Treads > --- UTILITY ---------- Advanced Coolant Injector Advanced Coolant Injector High-capacity Storage Unit Enhanced Optical Array Launcher Guidance Computer Advanced Powered Armor Advanced Powered Armor > --- WEAPON ----------- Heavy Disruptor Cannon Magnetic Acceleration Cannon Gamma Bomb Array > --- INVENTORY -------- Light Fission Core Light Fission Core Advanced Treads Cesium-ion Thruster Surge Thruster Cooled Cesium-ion Thruster Power Amplifier Advanced Heat Sink Energy Well Machine Analyzer Advanced Sensor Array ECM Suite Advanced ECM Suite Cloaking Device Cloaking Device Cloaking Device Advanced Powered Armor Gauss Cannon Hypervelocity Gauss Cannon Hypervelocity Gauss Cannon [Rating: 125] Favorites ----------- Power Antimatter Reactor Engine Ion Engine Power Core Light Nuclear Core Reactor Antimatter Reactor Propulsion Aluminum Leg Treads Advanced Treads Leg Aluminum Leg Hover Unit Hover Unit Flight Unit Cooled Cesium-ion Thruster Utility Small Storage Unit Device Power Amplifier Storage Small Storage Unit Processor Enhanced Optical Array Hackware System Shield Protection Advanced Powered Armor Weapon Gauss Cannon Energy Gun Medium Laser Energy Cannon Particle Cannon Ballistic Gun Gauss Rifle Ballistic Cannon Gauss Cannon Launcher Gamma Bomb Array Slashing Weapon Centrium Greatsword Build | -11 -10 -9 -9 -8 -7 -6 -6 -6 -5 -5 -4 -4 -4 ------- Run | Yrd Mat Mat Min Mat Fac Fac Was Fac Fac DSF Fac Was Fac Slots Evolved 12 | . . 2 . 2 2 2 . . 2 . 2 . . Power 2 | . . 1 . . . 1 . . . . . . . Propulsion 2 | . . . . 1 . . . . 1 . . . . Utility 6 | . . 1 . 1 1 1 . . 1 . 1 . . Weapon 2 | . . . . . 1 . . . . . 1 . . Parts Attached 151 | . 7 11 5 34 1 25 16 4 2 8 24 . 14 Power 24 | . 1 3 1 6 . 5 2 . . 2 4 . . Engine 6 | . 1 3 . 2 . . . . . . . . . Core 13 | . . . 1 4 . 3 1 . . 2 2 . . Reactor 5 | . . . . . . 2 1 . . . 2 . . Propulsion 38 | . 2 4 1 9 . 7 5 . 1 . 3 . 6 Treads 8 | . . . . 4 . . 3 . 1 . . . . Leg 18 | . . 4 1 4 . 3 . . . . . . 6 Wheel . | . . . . . . . . . . . . . . Hover 4 | . 2 . . . . . 2 . . . . . . Flight 8 | . . . . 1 . 4 . . . . 3 . . Utility 50 | . 2 1 2 8 1 6 3 1 1 6 12 . 7 Device 26 | . . 1 1 4 . 2 1 . . 1 10 . 6 Storage 6 | . . . 1 . . . 1 . 1 2 . . 1 Processor 10 | . 2 . . 2 1 2 . 1 . 1 1 . . Hackware 1 | . . . . . . 1 . . . . . . . Protection 7 | . . . . 2 . 1 1 . . 2 1 . . Artifact . | . . . . . . . . . . . . . . Weapon 39 | . 2 3 1 11 . 7 6 3 . . 5 . 1 Energy Gun 4 | . 2 1 . . . 1 . . . . . . . Energy Cannon 6 | . . 1 . 2 . 1 . 1 . . 1 . . Ballistic Gun 5 | . . 1 . 3 . 1 . . . . . . . Ballistic Cannon 13 | . . . 1 1 . 2 3 1 . . 4 . 1 Launcher 9 | . . . . 5 . 2 1 1 . . . . . Special Weapon . | . . . . . . . . . . . . . . Impact Weapon . | . . . . . . . . . . . . . . Slashing Weapon 2 | . . . . . . . 2 . . . . . . Piercing Weapon . | . . . . . . . . . . . . . . Special Melee Weapon . | . . . . . . . . . . . . . . Unidentified Prototypes 10 | . . . . 1 . 5 1 1 . 1 . . 1 Corrupted Parts 1 | . . . . . . . . . . 1 . . . System Corruption 5 | . . . . . . . . . . 5 . . . Parts Lost 53 | . . 8 . 7 . 10 . 3 . . 10 . 15 Power 9 | . . 2 . 2 . . . 2 . . 2 . 1 Propulsion 13 | . . 3 . 2 . 2 . . . . 3 . 3 Utility 18 | . . . . 1 . 3 . 1 . . 3 . 10 Weapon 13 | . . 3 . 2 . 5 . . . . 2 . 1 Highest Loss Streak 15 | . . 4 . 2 . 7 . 2 . . 3 . 15 To Critical Strikes . | . . . . . . . . . . . . . . Average Slot Usage (%) 82 | . 54 86 100 93 88 80 80 79 82 83 68 47 35 Engine 5 | . 4 14 15 5 7 1 3 3 5 2 . . . Core 6 | . . . 7 10 7 9 8 4 . 5 2 5 2 Reactor 2 | . . . . . . . 4 6 5 5 8 . . Treads 6 | . . . . 10 23 2 9 13 11 11 7 . . Leg 9 | . . 18 22 13 . 15 . . . . . . 6 Device 9 | . . 6 7 9 7 10 10 13 11 3 8 21 15 Storage 5 | . . . 3 9 7 6 6 6 11 6 3 . 1 Processor 13 | . 15 22 22 12 11 12 6 6 11 13 10 10 6 Hackware 1 | . . . . . . . 6 6 5 5 1 . . Protection 3 | . . . . 4 7 4 1 2 . 7 7 . . Energy Gun 2 | . 21 12 8 . . . . . . . . . . Energy Cannon 4 | . . 6 11 7 . 3 . . . . 3 . . Ballistic Gun 1 | . . 3 . 3 7 1 . . . . . . . Ballistic Cannon 4 | . . . 2 4 . . 11 13 11 11 4 . . Launcher 2 | . . . . 1 7 7 3 1 5 5 3 . . Peak Build Rating 125 | . 7 13 16 38 41 63 74 75 80 104 125 45 72 Average Rating 44 | . 3 9 14 24 39 48 58 61 78 91 99 45 41 On Entrance 39 | . . 7 12 15 38 41 29 74 67 80 104 45 45 Naked Turns 13 | . 13 . . . . . . . . . . . . Heaviest Build 161 | . 9 20 24 40 40 52 71 73 58 129 161 11 18 Greatest Support 145 | 3 12 23 20 66 66 66 92 97 145 145 145 11 120 Greatest Overweight (x) 8 | . 1 1 1 1 . 4 8 . . . 5 . 2 Average Overweight (x) . | . . . . . . . . . . . . . . Largest Inventory Capacity 20 | 5 5 5 8 8 8 8 8 8 8 20 20 5 5 Average Capacity 8 | 5 5 5 5 8 8 8 8 8 8 14 16 5 5 Most Carried 20 | 5 5 5 8 8 8 8 8 8 6 18 20 5 5 Average Carried 7 | 3 4 4 5 7 8 7 7 7 4 10 16 5 3 Final Capacity 20 | 5 5 5 8 8 8 8 8 8 8 20 5 5 5 Final Carried 18 | 5 5 5 8 8 8 8 8 6 4 18 5 5 1 Class Distribution -------------------- 36% | Scavenger-Mutant 18% | Mutant 13% | Hacker-Mutant 9% | Hacker-Tank 7% | Tank 3% | Infiltrator-Sprinter Dominant Class ---------------- Mutant | -10/Materials Mutant | -9/Materials Scavenger-Mutant | -9/Mines Scavenger-Mutant | -8/Materials Scavenger-Mutant | -7/Factory Mutant | -6/Factory Hacker-Mutant | -6/Waste Hacker-Mutant | -6/Factory Hacker-Mutant | -5/Factory Hacker-Tank | -5/DSF Tank | -4/Factory Infiltrator-Sprinter | -4/Waste Mutant | -4/Factory Resources | -11 -10 -9 -9 -8 -7 -6 -6 -6 -5 -5 -4 -4 -4 ----------- Run | Yrd Mat Mat Min Mat Fac Fac Was Fac Fac DSF Fac Was Fac Matter Collected 3313 | 200 70 117 50 867 64 361 596 164 . 176 648 . . Remotely . | . . . . . . . . . . . . . . Salvage Created 5568 | . 237 568 117 2097 135 899 . 414 . 273 802 . 26 Parts 281 | . 15 38 8 109 14 40 . 10 . 1 45 . 1 Haulers Intercepted 5 | . 2 . . 2 . 1 . . . . . . . Recyclers Shooed 5 | . 3 . 1 . . . . . . . 1 . . Parts Field Recycled . | . . . . . . . . . . . . . . Retrieved Matter . | . . . . . . . . . . . . . . Parts Self-Destructed . | . . . . . . . . . . . . . . Prevented . | . . . . . . . . . . . . . . Kills | -11 -10 -9 -9 -8 -7 -6 -6 -6 -5 -5 -4 -4 -4 ------- Run | Yrd Mat Mat Min Mat Fac Fac Was Fac Fac DSF Fac Was Fac Combat Hostiles Destroyed 90 | . 5 15 2 40 1 13 . 3 . 1 9 . 1 Guns 25 | . 5 10 1 9 . . . . . . . . . Cannons 38 | . . 5 1 19 . 3 . 3 . 1 5 . 1 AOE 22 | . . . . 12 1 8 . . . . 1 . . Classes Destroyed 17 | . 4 2 1 4 1 1 . 2 . 1 1 . . Worker 11 | . . . 1 2 1 3 . 1 . . 3 . . Builder 7 | . . . . 4 1 1 . . . . 1 . . Tunneler 1 | . . . . . 1 . . . . . . . . Hauler 5 | . 2 . . 2 . 1 . . . . . . . Recycler 6 | . . 1 . 4 . . . . . . 1 . . Mechanic 2 | . . . . 2 . . . . . . . . . Watcher 5 | . 1 1 . 3 . . . . . . . . . Swarmer 23 | . 4 8 . 8 . . . 1 . . 1 . 1 Grunt 40 | . 1 4 2 23 . 8 . 2 . . . . . Brawler 1 | . . . . 1 . . . . . . . . . Sentry 15 | . . 3 . 7 1 1 . . . . 3 . . Hunter 6 | . . . . 1 . 3 . . . . 2 . . Programmer 2 | . . . . . . 1 . . . . 1 . . Heavy 2 | . . . . . . . . . . 1 1 . . Behemoth 1 | . . . . . . . . . . . 1 . . Butcher 2 | . . . . . . . . 2 . . . . . Martyr 2 | . . . . . . . . 2 . . . . . Best Kill Streak 16 | . 4 4 2 16 4 7 . 1 . 1 4 . 1 Combat Bots Only 5 | . 4 4 2 5 1 5 . 1 . 1 3 . 1 Max Kills in Single Turn 4 | . 1 2 1 4 2 4 . 3 . 1 2 . 1 Gunslinging . | . . . . . . . . . . . . . . Exploded 4 | . . . . 4 1 3 . . . . 1 . . Melee . | . . . . . . . . . . . . . . Uniques/NPCs Destroyed . | . . . . . . . . . . . . . . Combat | -11 -10 -9 -9 -8 -7 -6 -6 -6 -5 -5 -4 -4 -4 -------- Run | Yrd Mat Mat Min Mat Fac Fac Was Fac Fac DSF Fac Was Fac Hostile Shots Fired 1135 | . 37 104 4 228 45 287 . 24 . 9 155 . 242 Missed 389 | . 8 15 . 88 25 107 . 3 . 1 51 . 91 Damage Taken 10152 | . 193 791 41 1532 102 1972 . 405 . 603 2367 . 2146 Core 2560 | . 101 200 7 188 6 379 . 10 . 502 148 . 1019 Absorbed by Shields . | . . . . . . . . . . . . . . Reduced by Siege Mode 91 | . . . . . . . . . . . 91 . . Redirected to Shielding 87 | . . . . . . . . 87 . . . . . Ignored by Resistances 3042 | . 63 240 12 509 54 765 . 114 . 33 638 . 614 Regen/Repaired (Parts) 543 | . . . . . . . 346 176 . 21 . . . Core Remaining (%) 67 | 100 59 . 48 65 99 . . 54 . 49 . . . Volleys Fired 283 | . 23 41 6 99 6 41 1 11 . 3 48 . 4 Largest 4 | . 2 2 2 2 2 3 1 2 . 3 4 . 1 Hottest 251 | . 100 118 113 107 64 152 80 101 . 181 251 . 61 Shots Fired 530 | . 46 79 12 182 12 74 1 23 . 8 89 . 4 Gun 164 | . 46 62 6 44 6 . . . . . . . . Cannon 306 | . . 17 6 124 . 45 . 22 . 6 82 . 4 Launcher 60 | . . . . 14 6 29 1 1 . 2 7 . . Special . | . . . . . . . . . . . . . . Kinetic 233 | . . 21 . 95 6 23 . 22 . 6 56 . 4 Thermal 196 | . 46 49 6 73 . 22 . . . . . . . Explosive 16 | . . . . 9 . 7 . . . . . . . Electromagnetic 85 | . . 9 6 5 6 22 1 1 . 2 33 . . Robot Hit Streak 45 | . 7 45 9 19 12 17 5 7 . 14 26 . 1 Robot Miss Streak 4 | . 2 2 1 4 . 2 . 2 . 1 2 . 2 Penetration Max 1 | . . . . 1 . . . . . . . . . Secondary Targets 2 | . 1 1 . . . . . . . . . . . Max Gunslinging Chain 1 | . 1 1 . . . . . . . . . . . Shots Hit Robots 400 | . 31 62 9 136 11 57 1 14 . 6 72 . 1 Core Hits 229 | . 14 22 4 88 8 26 1 18 . 7 40 . 1 Critical Kills 5 | . . . . . . 1 . . . . 3 . 1 Critical Parts Destroyed 5 | . . . . . . . . . . . 5 . . Critical Strikes 20 | . 1 1 . 2 . 3 . 1 . . 11 . 1 Burn 2 | . 1 1 . . . . . . . . . . . Meltdown 1 | . . . . . . 1 . . . . . . . Destroy 9 | . . . . . . . . . . . 8 . 1 Blast 7 | . . . . 2 . 2 . 1 . . 2 . . Corrupt 1 | . . . . . . . . . . . 1 . . Melee Attacks . | . . . . . . . . . . . . . . Impact . | . . . . . . . . . . . . . . Slashing . | . . . . . . . . . . . . . . Piercing . | . . . . . . . . . . . . . . Sneak Attacks . | . . . . . . . . . . . . . . Combat Hostiles . | . . . . . . . . . . . . . . Follow-up Attacks . | . . . . . . . . . . . . . . Damage Inflicted 12348 | . 400 816 177 4222 382 2971 40 909 . 312 2092 . 27 Guns 1757 | . 400 552 75 627 103 . . . . . . . . Cannons 5635 | . . 264 102 2208 . 911 . 368 . 89 1666 . 27 Explosions 4952 | . . . . 1383 279 2060 40 541 . 223 426 . . Melee . | . . . . . . . . . . . . . . Ramming 4 | . . . . 4 . . . . . . . . . Kinetic 3941 | . . 166 . 1523 103 546 . 368 . 89 1119 . 27 Thermal 3537 | . 400 589 102 1302 63 1081 . . . . . . . Explosive 1877 | . . . . 1213 . 664 . . . . . . . Electromagnetic 2979 | . . 61 75 170 216 680 40 541 . 223 973 . . Impact 10 | . . . . 10 . . . . . . . . . Slashing . | . . . . . . . . . . . . . . Piercing . | . . . . . . . . . . . . . . Highest Corruption 13 | . . . . . . 4 4 6 . 5 3 11 13 Average Corruption 4 | . . . . . . 3 4 4 . 5 2 9 11 Corruption Purged . | . . . . . . . . . . . . . . Corruption Blocked . | . . . . . . . . . . . . . . Effects 49 | . . . . . . 4 11 16 . 8 3 3 4 Message Errors 11 | . . . . . . . 2 6 . 1 . 1 1 Matter Fused 14 | . . . . . . 1 2 3 . 4 1 1 2 Heat Flow Errors 8 | . . . . . . . 1 3 . 2 1 1 . Energy Discharges 9 | . . . . . . 2 4 2 . . 1 . . Parts Rejected 1 | . . . . . . 1 . . . . . . . Parts Fused 2 | . . . . . . . 1 1 . . . . . Data Loss (minor) 1 | . . . . . . . . . . 1 . . . Data Loss (major) 1 | . . . . . . . . . . . . . 1 Misfires 1 | . . . . . . . . 1 . . . . . Alerts 1 | . . . . . . . 1 . . . . . . Overload Shots . | . . . . . . . . . . . . . . Overflow Damage 285 | . . . . 41 . 235 . 9 . . . . . Projectiles 83 | . . . . 25 . 49 . 9 . . . . . Explosions 202 | . . . . 16 . 186 . . . . . . . Melee . | . . . . . . . . . . . . . . Knockbacks 17 | . . . . 8 . 1 . 4 . . 2 . 2 Impact . | . . . . . . . . . . . . . . Kinetic 16 | . . . . 8 . 1 . 4 . . 2 . 1 Secondary 1 | . . . . . . . . . . . . . 1 Self-Inflicted Damage 297 | . . . . 21 . 202 . 22 . 8 44 . . Shots 18 | . . . . 1 . 9 . 3 . 1 4 . . Rammed 1 | . . . . 1 . . . . . . . . . Targets Rammed 2 | . . 1 . 1 . . . . . . . . . Kicked 1 | . . 1 . . . . . . . . . . . Crushed . | . . . . . . . . . . . . . . Highest Temperature 702 | . 186 201 114 355 . 373 141 270 . 702 460 153 14 Average Temperature 102 | . 78 73 42 58 . 61 49 91 . 225 138 83 14 Received Heat Transfer 2305 | . 42 315 24 1008 48 423 . 9 . 48 162 . 226 Effects 29 | . . . . 2 . 1 . 1 . 20 5 . . Shutdowns 10 | . . . . 1 . . . . . 7 2 . . Interference 6 | . . . . . . . . 1 . 2 3 . . Matter Decay 1 | . . . . . . . . . . 1 . . . Short Circuit 1 | . . . . . . 1 . . . . . . . Damage (minor) 2 | . . . . 1 . . . . . 1 . . . Damage (major) 6 | . . . . . . . . . . 6 . . . Damage (core) 3 | . . . . . . . . . . 3 . . . Siege Activations 4 | . . . . . . . . . . . 4 . . Total Turns 74 | . . . . . . . . . . . 74 . . Longest Duration 50 | . . . . . . . . . . . 50 . . Robots Corrupted 8 | . . . . . . 1 . 4 . . 3 . . Combat Hostiles 4 | . . . . . . 1 . . . . 3 . . Parts Fried 17 | . . . . 3 . 3 . 8 . . 3 . . Impact Corruptions . | . . . . . . . . . . . . . . Robots Melted 1 | . . . . . . 1 . . . . . . . Combat Hostiles 1 | . . . . . . 1 . . . . . . . Parts Melted 7 | . 3 1 . 1 . 2 . . . . . . . Heat Transferred 6369 | . 1258 1517 185 2109 100 1200 . . . . . . . Parts Sabotaged . | . . . . . . . . . . . . . . Parts Stolen . | . . . . . . . . . . . . . . Parts Stripped . | . . . . . . . . . . . . . . Power Chain Reactions 2 | . . . . . 2 . . . . . . . . Alert | -11 -10 -9 -9 -8 -7 -6 -6 -6 -5 -5 -4 -4 -4 ------- Run | Yrd Mat Mat Min Mat Fac Fac Was Fac Fac DSF Fac Was Fac Peak Influence 814 | . 163 290 258 814 364 378 110 356 150 361 212 98 60 Initial 286 | . . 58 95 20 286 153 110 7 150 92 163 58 60 Average 195 | . 105 183 109 324 299 227 75 191 150 254 152 79 24 Maximum Alert Level 3 | . . 1 1 3 1 1 . 1 . 1 1 . . Low Security (%) 63 | 100 100 48 83 43 . 45 100 58 100 31 97 100 100 Level 1 29 | . . 51 16 16 100 54 . 41 . 68 2 . . Level 2 6 | . . . . 31 . . . . . . . . . Level 3 1 | . . . . 8 . . . . . . . . . Level 4 . | . . . . . . . . . . . . . . Level 5 . | . . . . . . . . . . . . . . High Security . | . . . . . . . . . . . . . . Max Security . | . . . . . . . . . . . . . . Sterilizations 1 | . . . . . . . . . . 1 . . . Squads Dispatched 31 | . 1 3 . 9 1 8 . 2 . 1 6 . . Investigation 7 | . 1 1 . 2 . 3 . . . . . . . Extermination 4 | . . . . . . 2 . 1 . . 1 . . Reinforcement 13 | . . 2 . 4 1 2 . 1 . 1 2 . . Assault . | . . . . . . . . . . . . . . Garrison 7 | . . . . 3 . 1 . . . . 3 . . Intercept . | . . . . . . . . . . . . . . Searches Triggered . | . . . . . . . . . . . . . . Construction Impeded 2 | . . . . 1 1 . . . . . . . . Haulers Reinforced 1 | . . . . . . 1 . . . . . . . Active Scanning Responses . | . . . . . . . . . . . . . . Cargo Convoy Interrupts . | . . . . . . . . . . . . . . Stealth | -11 -10 -9 -9 -8 -7 -6 -6 -6 -5 -5 -4 -4 -4 --------- Run | Yrd Mat Mat Min Mat Fac Fac Was Fac Fac DSF Fac Was Fac Distress Signals 10 | . 1 4 . 5 . . . . . . . . . Communications Jammed . | . . . . . . . . . . . . . . Distress Signals . | . . . . . . . . . . . . . . Times Spotted 174 | . 7 25 5 53 2 28 2 12 . 9 11 6 14 Peak Tracking Total 9 | . 4 6 2 7 1 9 1 4 . 3 3 6 9 Tactical Retreats 11 | . . 3 . 3 . 3 1 . . . 1 . . Traps | -11 -10 -9 -9 -8 -7 -6 -6 -6 -5 -5 -4 -4 -4 ------- Run | Yrd Mat Mat Min Mat Fac Fac Was Fac Fac DSF Fac Was Fac Traps Triggered 10 | . . 1 . 1 . 3 . 3 . . 2 . . Indirectly 1 | . . . . . . 1 . . . . . . . Trap Hack Attempts . | . . . . . . . . . . . . . . Triggered . | . . . . . . . . . . . . . . Disarmed . | . . . . . . . . . . . . . . Reprogrammed . | . . . . . . . . . . . . . . Reused . | . . . . . . . . . . . . . . Traps Extracted . | . . . . . . . . . . . . . . Installed . | . . . . . . . . . . . . . . Triggered . | . . . . . . . . . . . . . . Machines | -11 -10 -9 -9 -8 -7 -6 -6 -6 -5 -5 -4 -4 -4 ---------- Run | Yrd Mat Mat Min Mat Fac Fac Was Fac Fac DSF Fac Was Fac Machines Disabled 15 | . . . . 3 . 10 . 1 . 1 . . . Max in Single Turn 4 | . . . . 1 . 4 . 1 . 1 . . . Machines Repaired . | . . . . . . . . . . . . . . Machines Dismantled . | . . . . . . . . . . . . . . Machines Sabotaged . | . . . . . . . . . . . . . . Overloaded Fab Kills . | . . . . . . . . . . . . . . Hacking | -11 -10 -9 -9 -8 -7 -6 -6 -6 -5 -5 -4 -4 -4 --------- Run | Yrd Mat Mat Min Mat Fac Fac Was Fac Fac DSF Fac Was Fac Machines Accessed 19 | . 2 4 . 4 . 8 . . 1 . . . . Terminals 15 | . 2 3 . 4 . 5 . . 1 . . . . Fabricators 1 | . . . . . . 1 . . . . . . . Repair Stations . | . . . . . . . . . . . . . . Recycling Units 3 | . . 1 . . . 2 . . . . . . . Scanalyzers . | . . . . . . . . . . . . . . Garrison Access . | . . . . . . . . . . . . . . Total Hacks 41 | . 5 5 . 12 . 16 . . 3 . . . . Successful 24 | . 3 5 . 5 . 10 . . 1 . . . . Failed 17 | . 2 . . 7 . 6 . . 2 . . . . Catastrophic 1 | . . . . . . 1 . . . . . . . Database Lockouts . | . . . . . . . . . . . . . . Manual 17 | . 1 5 . 9 . 2 . . . . . . . Terminals 35 | . 5 4 . 12 . 11 . . 3 . . . . Fabricators 2 | . . . . . . 2 . . . . . . . Repair Stations . | . . . . . . . . . . . . . . Recycling Units 4 | . . 1 . . . 3 . . . . . . . Scanalyzers . | . . . . . . . . . . . . . . Garrison Access . | . . . . . . . . . . . . . . Terminal Hacks 12 | . 2 . . 3 . 6 . . 1 . . . . Record 4 | . 1 . . 2 . 1 . . . . . . . Part Schematic 1 | . . . . . . 1 . . . . . . . Prototype ID Bank 1 | . . . . 1 . . . . . . . . . Open DSF 2 | . . . . . . 1 . . 1 . . . . Emergency Access Points 1 | . . . . . . 1 . . . . . . . Dispatch Records 1 | . . . . . . 1 . . . . . . . Zone Layout 2 | . 1 . . . . 1 . . . . . . . Fabricator Hacks 2 | . . . . . . 2 . . . . . . . Network Status 1 | . . . . . . 1 . . . . . . . Load Schematic 1 | . . . . . . 1 . . . . . . . Repair Station Hacks . | . . . . . . . . . . . . . . Recycling Unit Hacks 3 | . . 1 . . . 2 . . . . . . . Report Inventory 3 | . . 1 . . . 2 . . . . . . . Scanalyzer . | . . . . . . . . . . . . . . Garrison Access Hacks . | . . . . . . . . . . . . . . Unauthorized Hacks 7 | . 1 4 . 2 . . . . . . . . . Terminals 7 | . 1 4 . 2 . . . . . . . . . Assimilate 1 | . . 1 . . . . . . . . . . . Botnet 6 | . 1 3 . 2 . . . . . . . . . Fabricators . | . . . . . . . . . . . . . . Repair Stations . | . . . . . . . . . . . . . . Recycling Units . | . . . . . . . . . . . . . . Scanalyzers . | . . . . . . . . . . . . . . Garrison Access . | . . . . . . . . . . . . . . Data Cores Recovered 1 | . . . . . . . . 1 . . . . . Used . | . . . . . . . . . . . . . . Hacking Detections 11 | . 2 2 . 2 . 5 . . . . . . . Full Trace Events 4 | . 1 . . 1 . 2 . . . . . . . Feedback Events . | . . . . . . . . . . . . . . Feedback Blocked . | . . . . . . . . . . . . . . Robot Schematics Acquired . | . . . . . . . . . . . . . . Robots Built . | . . . . . . . . . . . . . . Authchips . | . . . . . . . . . . . . . . Time . | . . . . . . . . . . . . . . Total Robot Build Rating . | . . . . . . . . . . . . . . Part Schematics Acquired 1 | . . . . . . 1 . . . . . . . Parts Built . | . . . . . . . . . . . . . . Authchips . | . . . . . . . . . . . . . . Time . | . . . . . . . . . . . . . . Total Part Build Rating . | . . . . . . . . . . . . . . Parts Repaired . | . . . . . . . . . . . . . . Time . | . . . . . . . . . . . . . . Parts Recycled . | . . . . . . . . . . . . . . Recycled Matter . | . . . . . . . . . . . . . . Retrieved Matter . | . . . . . . . . . . . . . . Retrieved Components . | . . . . . . . . . . . . . . Parts Scanalyzed . | . . . . . . . . . . . . . . Part Schematics Acquired . | . . . . . . . . . . . . . . Parts Damaged . | . . . . . . . . . . . . . . Bothacking | -11 -10 -9 -9 -8 -7 -6 -6 -6 -5 -5 -4 -4 -4 ------------ Run | Yrd Mat Mat Min Mat Fac Fac Was Fac Fac DSF Fac Was Fac Used RIF Installer . | . . . . . . . . . . . . . . Robots Hacked . | . . . . . . . . . . . . . . Non-combat . | . . . . . . . . . . . . . . Combat . | . . . . . . . . . . . . . . Robot Hacks Applied . | . . . . . . . . . . . . . . Relay Couplers Released . | . . . . . . . . . . . . . . Fabnet Peak Effective % . | . . . . . . . . . . . . . . Robots Rewired . | . . . . . . . . . . . . . . Allies Hacked . | . . . . . . . . . . . . . . Hacks Repelled . | . . . . . . . . . . . . . . Allies | -11 -10 -9 -9 -8 -7 -6 -6 -6 -5 -5 -4 -4 -4 -------- Run | Yrd Mat Mat Min Mat Fac Fac Was Fac Fac DSF Fac Was Fac Total Allies 24 | . . . 3 . . . 20 . . . . 1 . Largest Group 20 | . . . 3 3 . . 20 20 9 9 2 1 . Highest-Rated Group 771 | . . . 40 40 . . 771 770 332 332 86 46 . Highest-Rated Ally 50 | . . . 16 16 . . 50 50 46 46 46 46 . Total Orders . | . . . . . . . . . . . . . . Ally Attacks 176 | . . . 8 17 . . 9 88 . 45 . 9 . Total Damage 4507 | . . . 69 190 . . 610 2012 . 1389 . 237 . Kills 35 | . . . 4 2 . . 1 17 . 11 . . . Allies Corrupted 4 | . . . . . . . . 4 . . . . . Allies Melted . | . . . . . . . . . . . . . . Intel | -11 -10 -9 -9 -8 -7 -6 -6 -6 -5 -5 -4 -4 -4 ------- Run | Yrd Mat Mat Min Mat Fac Fac Was Fac Fac DSF Fac Was Fac Robot Analysis Total . | . . . . . . . . . . . . . . Derelict Logs Recovered 2 | . . . 2 . . . . . . . . . . Drone Launches . | . . . . . . . . . . . . . . Drone Recoveries . | . . . . . . . . . . . . . . Exploration | -11 -10 -9 -9 -8 -7 -6 -6 -6 -5 -5 -4 -4 -4 ------------- Run | Yrd Mat Mat Min Mat Fac Fac Was Fac Fac DSF Fac Was Fac Turns Passed 6753 | 33 167 693 766 1274 143 1058 597 784 19 335 667 72 145 Spaces Moved 4633 | 56 147 459 546 615 86 962 285 449 10 164 503 223 128 Core 171 | 56 88 . . . . 1 1 . . . . . 25 Treads 1394 | . . . . 258 86 75 200 449 10 164 152 . . Legs 1880 | . . 397 546 357 . 537 . . . . . . 43 Wheels . | . . . . . . . . . . . . . . Hover 186 | . 59 62 . . . . 65 . . . . . . Flight 1002 | . . . . . . 349 19 . . . 351 223 60 Fastest Speed 26 | 50 50 56 120 120 145 26 29 162 170 170 29 32 32 Average Speed 115 | 50 58 119 135 149 145 91 134 163 170 170 86 32 88 Slowest Speed 740 | 50 100 190 190 225 145 360 740 180 170 170 255 32 150 Overloaded Moves 13 | . . . . . . 13 . . . . . . . Propulsion Burnouts . | . . . . . . . . . . . . . . Robots Hopped 5 | . . . . . . 4 . . . . 1 . . Cave-ins Triggered . | . . . . . . . . . . . . . . Exploration Rate (%) 42 | 3 29 27 98 50 6 32 79 22 . 92 9 100 7 Regions Visited 13 Branch Regions 1 Pre-discovered Areas 2 | . . . 2 . . . . . . . . . . Known Exits Taken 6 | . 1 1 1 1 1 . . . 1 . . . . Unknown Exits Taken 2 | 1 . . . . . . . 1 . . . . . Scrap Searched 4 | . . . 4 . . . . . . . . . . Spaces Dug . | . . . . . . . . . . . . . . Terrain Destroyed 146 | . . . . 56 3 80 . 4 . . 3 . . Melee . | . . . . . . . . . . . . . . Projectile 16 | . . . . 5 . 4 . 4 . . 3 . . AOE 130 | . . . . 51 3 76 . . . . . . . Terrain Rammed . | . . . . . . . . . . . . . . Walls Destroyed . | . . . . . . . . . . . . . . Machines Disabled . | . . . . . . . . . . . . . . Actions | -11 -10 -9 -9 -8 -7 -6 -6 -6 -5 -5 -4 -4 -4 --------- Run | Yrd Mat Mat Min Mat Fac Fac Was Fac Fac DSF Fac Was Fac Total 5516 | 60 177 528 562 783 92 1070 502 478 13 216 658 222 155 Wait 255 | . . 1 . 1 . 5 174 10 . 11 51 . 2 Move 4612 | 55 146 458 545 614 85 954 284 448 9 163 501 222 128 Hop 5 | . . . . . . 4 . . . . 1 . . Pick Up 104 | 5 1 12 3 16 . 19 9 2 1 23 13 . . Fast Attach 42 | . 6 1 . 5 1 7 7 . . 1 6 . 8 Attach 71 | . 1 9 . 7 . 14 9 3 2 5 16 . 5 Detach 10 | . . . . . . 2 1 1 . 1 3 . 2 Swap 38 | . . 1 5 22 . 4 . 1 . 2 2 . 1 Drop 92 | . . 4 3 18 . 20 15 2 1 7 17 . 5 Fire 283 | . 23 41 6 99 6 41 1 11 . 3 48 . 4 Melee . | . . . . . . . . . . . . . . Ram . | . . . . . . . . . . . . . . Kick 1 | . . 1 . . . . . . . . . . . Crush 1 | . . . . 1 . . . . . . . . . Escape Stasis . | . . . . . . . . . . . . . . Rewire 2 | . . . . . . . 2 . . . . . . Trap . | . . . . . . . . . . . . . . Miscellaneous . | . . . . . . . . . . . . . . Route ------- -11/Scrapyard -10/Materials -9/Materials -9/Mines (discovered 2 exits: *Mat x2) -8/Materials -7/Factory -6/Factory -6/Waste -6/Factory -5/Factory -5/DSF -4/Factory -4/Waste -4/Factory History --------- Turn | Location | Event 7 | -11/Scrapyard | Discovered new exit (range 16) 34 | -11/Scrapyard | Entered Materials 181 | -10/Materials | Discovered new exit (range 9) 185 | -10/Materials | Identified exit to Materials 201 | -10/Materials | Entered another Materials area 201 | -9/Materials | Evolved 2 slots: Power x1, Utility x1 303 | -9/Materials | Build established: Mutant 329 | -9/Materials | Lost 4 parts (1p2n1w) 724 | -9/Materials | Discovered new exit (range 15) 752 | -9/Materials | Identified exit to Mines 894 | -9/Materials | Entered Mines 898 | -9/Mines | Assisted by bots powering up and referring to "LRC-V3" 926 | -9/Mines | Discovered new exit (range 10) 935 | -9/Mines | Identified exit to Materials 1002 | -9/Mines | Build established: Scavenger-Mutant 1123 | -9/Mines | Core integrity fell below 50% 1133 | -9/Mines | Learned location of Recycling (-7) 1261 | -9/Mines | Discovered exit to Materials (range 12) 1464 | -9/Mines | A weapon hastily lodged in a ceiling crevice suddenly fell to the ground 1660 | -9/Mines | Entered Materials 1660 | -8/Materials | Accompanied by 3 allies 1660 | -8/Materials | Evolved 2 slots: Propulsion x1, Utility x1 2270 | -8/Materials | Garrison activated, responded to threat 2854 | -8/Materials | Discovered new exit (range 16) 2931 | -8/Materials | Identified exit to Factory 2934 | -8/Materials | Entered Factory 2934 | -7/Factory | Evolved 2 slots: Utility x1, Weapon x1 3035 | -7/Factory | Discovered new exit (range 16) 3073 | -7/Factory | Identified exit to Factory 3077 | -7/Factory | Entered another Factory area 3077 | -6/Factory | Evolved 2 slots: Power x1, Utility x1 3662 | -6/Factory | Spotted B-75 Beast 3897 | -6/Factory | Garrison activated, responded to threat 3998 | -6/Factory | Lost 7 parts (1n2u4w) 4045 | -6/Factory | Discovered new exit (range 21) 4135 | -6/Factory | Sucked down chute 4135 | -6/Factory | Entered Waste 4136 | -6/Waste | Joined by Warlord forces that had cleared the area 4394 | -6/Waste | Found Broken Gamma Bomb Array 4633 | -6/Waste | Discovered new exit (range 22) 4655 | -6/Waste | A Compactor rumbled back to life 4655 | -6/Waste | Spotted C-40 Crusher 4660 | -6/Waste | Allies destroyed C-40 Crusher 4732 | -6/Waste | Entered Factory 4732 | -6/Factory | Accompanied by 20 allies 4952 | -6/Factory | Lost 4 allies 4991 | -6/Factory | Lost 4 allies 5133 | -6/Factory | Build established: Hacker-Mutant 5461 | -6/Factory | Discovered new exit (range 19) 5516 | -6/Factory | Entered another Factory area 5516 | -5/Factory | Accompanied by 9 allies 5516 | -5/Factory | Evolved 2 slots: Propulsion x1, Utility x1 5534 | -5/Factory | Identified exit to DSF 5535 | -5/Factory | Entered DSF 5535 | -5/DSF | Accompanied by 9 allies 5581 | -5/DSF | Additional patrols routed to DSF 5598 | -5/DSF | Found Corrupted Prototype Device 5601 | -5/DSF | Identified Active Sensor Suite 5641 | -5/DSF | Found Adv. Powered Armor 5644 | -5/DSF | Found Adv. Powered Armor 5649 | -5/DSF | Found Adv. Powered Armor 5672 | -5/DSF | Discovered new exit (range 15) 5779 | -5/DSF | Sterilization system engaged 5799 | -5/DSF | Ambient heat levels rising (+10) 5814 | -5/DSF | Ambient heat levels rising (+10) 5829 | -5/DSF | Ambient heat levels rising (+10) 5844 | -5/DSF | Ambient heat levels rising (+10) 5859 | -5/DSF | Ambient heat levels rising (+10) 5868 | -5/DSF | Core integrity fell below 50% 5870 | -5/DSF | Entered Factory 5870 | -4/Factory | Accompanied by 2 allies 5870 | -4/Factory | Evolved 2 slots: Utility x1, Weapon x1 5966 | -4/Factory | Build established: Hacker-Tank 6041 | -4/Factory | Spotted B-86 Titan 6140 | -4/Factory | Destroyed B-86 Titan 6267 | -4/Factory | Garrison activated, responded to threat 6404 | -4/Factory | Lost 3 parts (2n1w) 6537 | -4/Factory | Sucked down chute 6537 | -4/Factory | Entered Waste 6538 | -4/Waste | Met a frightened Derelict 6544 | -4/Waste | Spotted C-40 Crusher 6547 | -4/Waste | Spotted C-40 Crusher 6552 | -4/Waste | EMP discharged 6552 | -4/Waste | System corruption reached 10% 6570 | -4/Waste | Spotted C-40 Crusher 6570 | -4/Waste | Spotted C-40 Crusher 6571 | -4/Waste | Spotted C-40 Crusher 6573 | -4/Waste | Spotted C-40 Crusher 6605 | -4/Waste | Discovered new exit (range 10) 6609 | -4/Waste | Entered Factory 6630 | -4/Factory | Spotted B-86 Titan 6728 | -4/Factory | Core integrity fell below 50% 6740 | -4/Factory | Core integrity fell below 20% 6754 | -4/Factory | Destroyed by G-73 Enforcer with Phase Gun Last Messages --------------- Adv. Myomer Leg destroyed. S-27 Virus suffers critical hit (Burn). K-01 Serf collects debris. Slug penetrates Wall. S-27 Virus heat spikes uncontrollably. S-27 Virus heat damages VTOL Module, VTOL Module, Lgt. Nuclear Core, Autogun. /KFQTJUY#UF8RQ4LKVGLNQ5RXDEENNF S-27 Virus heat damages Lgt. Nuclear Core, VTOL Module, VTOL Module, Autogun. Penetrated by Slug. S-27 Virus heat damages VTOL Module, Lgt. Nuclear Core. S-27 Virus heat damages Lgt. Nuclear Core, Autogun. M-36 Artificer repairs S-27 Virus. S-27 Virus heat short circuits Lgt. Nuclear Core. K-01 Serf collects debris. Subcomponent Replicator disabled. Dropped Energy Well. Extracted 15 energy. Adv. Power Amplifier destroyed. Map ----- +----------------------------------------------------+ | ?????????????????????????????????????????????????? | | ?????????????????????????????????????????????????? | | ?????????????????????????????????????????????????? | | ?????????????????????????????????????????????????? | | ????"""""????????????????????????????????????????? | | ????""?F"????????????????????????????????????????? | | ????""?""????????????????????????????????????????? | | ?????????????????????????????????????????????????? | | ?????????????????????????????????????????????????? | | ?????????????????????????????????????????????????? | | ??""""""?????????????????????????????????????????? | | ??""""""?????? ????????????????????????????????? | | ??""""""????# ???????????????#????????????????? | | ??""""""????# ?????????????? #????????????????? | | ????????????# ?????????????? #????????????????? | | +########?### ???????????? #####????????????? | | ! ????????????gg ???????????? | | ???????????g g ???????????? | | """"" """"" ??????????? ???????????? | | """"" """"" ?????????? ????????????? | | """ """ ?????????? ??????????????? | | ????????? k#????????????????? | | #####+### #????????????????? | | #????????????????? | | s s #????????????????? | | "" "" "" "" "" ""@ #????????????????? | | "" "" "" "" !"" "" R #????????????????? | | """ """ """ """ """ """ #????????????????? | | """ """ """ """ """ """ ""#????????????????? | | """ """ """ " """p""" ""#????????????????? | | G#????????????????? | | ""#????????????????? | | ""#????????????????? | | % #????????????????? | | %=* #????????????????? | | "#"###############+######+####????????????????? | | # #???????????? ??????????????????? | | " """""""????????????????????????????????????? | | # """""""????????????????""""""??????????????? | | # """""""???????"""??????""""""??????????????? | | #? """""""?????"""""??????""""""??????????????? | | #?? ?????"""""??????""""""??????????????? | | #??? ????????????????????????????????????? | | #???#######???????????????????????????????????? | | ######## ###??????????????????"?""???????????? | | #??????????????????"R""???????????? | | =* #??????????????????""""???????????? | | " " #?????????????????????????????????? | | *R"= #?????????????????????????????????? | | " #?????????????????????????????????? | +----------------------------------------------------+ Best States ------------- Heat Dissipation 59 Coolant Potential 200 Energy Generation 53 Energy Capacity 760 Matter Stores 473 Matter Capacity 550 Sight Range 22 Robot Scan Range 16 Terrain Scan Density 10 ECM Strength 2 Jamming Range 14 Cloak Strength 2 Power Amplification 90 Armor Coverage 1600 Resistance: KI 40 Resistance: TH 20 Resistance: EX 20 Resistance: EM 20 Resistance: I 20 Resistance: S 20 Resistance: P 20 Propulsion Shielding 66 Evasion (%) 67 Targeting Accuracy 6 Launcher Accuracy 20 Target Analysis 5 Recoil Reduction 4 Offensive Hacking 10 Defensive Hacking 10 Item Schematics ----------------- Antigrav System | -6/Factory | Hacked Robot Schematics ------------------ None Fabricated ------------ Nothing Alien Tech Used ----------------- None Achievements -------------- Below Sniper Challenges ------------ None Game ------ Seed SpacefoldDecoyBay Manual? 0 Play Time 01:50:42 Cumulative 74.3 hours Start 2024.08.15 @ 17:49:41 End 2024.08.15 @ 19:46:41 Sessions 1 Manual Loads 0 Difficulty Adventurer Special Mode None Game No. 43 Rogue 21 Adventurer 22 Explorer 0 Win Type - Total 1 Types 1/0/0/0/0/0/0/0/0 Lore% 26 Gallery% 50 Achievement% 44 Wizard Run 0 Options --------- Layout 0 ASCII 0 Keyboard 0 Movement Mouse Keybinds 0 Fullscreen 1 Font 18/SmallcapsGlow Map View 76x50 Zoom Use 0% Tactical HUD 0 Map Filters NONE Filters NONE Steam 1 RUN: 2ca34b4c-86ce-4362-aab4-c8d00fae3de6